fUST/lending_fUST_20250429
["ID","MTS","AMOUNT","RATE_DAILY","PERIOD"]
[359316352,1745915451048,-400.0,0.00038356,3]
[359316354,1745915451058,-400.0,0.00038356,3]
[359316356,1745915451068,-400.0,0.00038356,3]
[359316358,1745915451077,-501.00683054,0.00038356,3]
[359316360,1745915451087,-400.0,0.00038356,3]
[359316362,1745915451097,-396.35731022,0.00038356,3]
[359316364,1745915451107,-400.0,0.00038356,3]
[359316366,1745915451118,-501.90738264,0.00038356,3]
[359316382,1745915451129,-400.0,0.00038356,3]
[359316383,1745915451298,-400.0,0.00038356,3]
[359316384,1745915451307,-400.0,0.00038356,3]
[359316385,1745915451317,-400.0,0.00038356,3]
[359316386,1745915451326,-400.0,0.00038356,3]
[359316387,1745915451335,-306.79560574,0.00038356,3]
[359316388,1745915451344,-2741.53,0.00038356,3]
[359316389,1745915451355,-400.0,0.00038356,3]
[359316390,1745915451365,-400.0,0.00038356,3]
[359316391,1745915451375,-420.53,0.00038356,3]
[359316392,1745915451384,-400.0,0.00038356,3]
[359316393,1745915451395,-3515.44,0.00038356,3]
[359316394,1745915451405,-400.0,0.00038356,3]
[359316395,1745915451414,-561.96,0.00038356,3]
[359316396,1745915451423,-561.96,0.00038356,3]
[359316397,1745915451433,-561.96,0.00038356,3]
[359316398,1745915451442,-561.96,0.00038356,3]
[359316399,1745915451453,-561.96,0.00038356,3]
[359316400,1745915451462,-400.0,0.00038356,3]
[359316401,1745915451471,-561.96,0.00038356,3]
[359316402,1745915451480,-561.96,0.00038356,3]
[359316403,1745915451490,-561.96,0.00038356,3]
[359316404,1745915451500,-561.96,0.00038356,3]
[359316405,1745915451509,-400.0,0.00038356,3]
[359316406,1745915451519,-561.96,0.00038356,3]
[359316407,1745915451532,-561.96,0.00038356,3]
[359316408,1745915451542,-561.96,0.00038356,3]
[359316409,1745915451551,-561.96,0.00038356,3]
[359316410,1745915451560,-561.96,0.00038356,3]
[359316411,1745915451569,-561.96,0.00038356,3]
[359316412,1745915451578,-561.96,0.00038356,3]
[359316413,1745915451587,-400.0,0.00038356,3]
[359316414,1745915451597,-561.96,0.00038356,3]
[359316415,1745915451606,-943.1,0.00038356,3]
[359316416,1745915451617,-561.96,0.00038356,3]
[359316417,1745915451626,-561.96,0.00038356,3]
[359316418,1745915451635,-561.96,0.00038356,3]
[359316419,1745915451644,-502.84,0.00038356,3]
[359316420,1745915451653,-561.96,0.00038356,3]
[359316421,1745915451663,-561.96,0.00038356,3]
[359316422,1745915451672,-400.0,0.00038356,3]
[359316423,1745915451680,-561.96,0.00038356,3]
[359316424,1745915451689,-502.44627608,0.00038356,3]
[359316425,1745915451699,-562.15817949,0.00038356,3]
[359316426,1745915451709,-400.0,0.00038356,3]
[359316427,1745915451720,-897.11,0.00038356,3]
[359316428,1745915451730,-504.35925707,0.00038356,3]
[359316429,1745915451740,-400.0,0.00038356,3]
[359316430,1745915451749,-400.0,0.00038356,3]
[359316431,1745915451759,-400.0,0.00038356,3]
[359316432,1745915451767,-500.83224348,0.00038356,2]
[359316434,1745915451777,-400.0,0.00038356,3]
[359316435,1745915451787,-1315.0,0.00038356,3]
[359316437,1745915451796,-400.0,0.00038356,3]
[359316438,1745915451806,-400.0,0.00038356,3]
[359316439,1745915451816,-400.0,0.00038356,2]
[359316440,1745915451825,-400.0,0.00038356,3]
[359316441,1745915451834,-1321.31,0.00038356,3]
[359316442,1745915451843,-400.0,0.00038356,3]
[359316443,1745915451853,-2337.58,0.00038356,3]
[359316444,1745915451864,-981.38,0.00038356,3]
[359316445,1745915451874,-957.73,0.00038356,3]
[359316446,1745915451885,-400.0,0.00038356,3]
[359316447,1745915451894,-400.0,0.00038356,3]
[359316448,1745915451904,-400.0,0.00038356,3]
[359316449,1745915451913,-400.0,0.00038356,3]
[359316450,1745915451922,-151.0,0.00038356,14]
[359316451,1745915451932,-400.0,0.00038356,3]
[359316452,1745915451942,-400.0,0.00038356,3]
[359316453,1745915451951,-6495.31,0.00038356,3]
[359316454,1745915451961,-151.0,0.00038356,14]
[359316455,1745915451970,-151.0,0.00038356,14]
[359316456,1745915451979,-1069.15,0.00038356,3]
[359316457,1745915451989,-151.0,0.00038356,14]
[359316458,1745915451999,-151.0,0.00038356,14]
[359316459,1745915452010,-400.0,0.00038356,3]
[359316460,1745915452019,-400.0,0.00038356,3]
[359316461,1745915452029,-151.0,0.00038356,14]
[359316462,1745915452039,-151.0,0.00038356,14]
[359316463,1745915452049,-400.0,0.00038356,3]
[359316464,1745915452059,-151.0,0.00038356,14]
[359316465,1745915452068,-4923.85,0.00038356,3]
[359316466,1745915452078,-151.0,0.00038356,14]
[359316467,1745915452087,-400.0,0.00038356,3]
[359316468,1745915452096,-151.0,0.00038356,14]
[359316469,1745915452105,-400.0,0.00038356,3]
[359316470,1745915452116,-151.0,0.00038356,14]
[359316471,1745915452125,-400.0,0.00038356,3]
[359316472,1745915452135,-151.0,0.00038356,14]
[359316473,1745915452143,-244.008109,0.00038356,14]
[359316474,1745915452152,-400.0,0.00038356,3]
[359316475,1745915452162,-400.0,0.00038356,3]
[359316476,1745915452172,-157.06195323,0.00038356,3]
[359316477,1745915452181,-400.0,0.00038356,3]
[359316478,1745915452190,-400.0,0.00038356,3]
[359316479,1745915452200,-3990.94,0.00038356,3]
[359316480,1745915452209,-400.0,0.00038356,3]
[359316481,1745915452218,-582.26,0.00038356,3]
[359316482,1745915452227,-8762.37,0.00038356,3]
[359316483,1745915452237,-400.0,0.00038356,3]
[359316484,1745915452246,-400.0,0.00038356,3]
[359316485,1745915452256,-400.0,0.00038356,3]
[359316486,1745915452266,-2259.06,0.00038356,3]
[359316487,1745915452275,-400.0,0.00038356,3]
[359316488,1745915452284,-400.0,0.00038356,3]
[359316489,1745915452293,-12815.93,0.00038356,3]
[359316490,1745915452303,-400.0,0.00038356,3]
[359316491,1745915452313,-400.0,0.00038356,3]
[359316492,1745915452323,-400.0,0.00038356,3]
[359316493,1745915452332,-500.0,0.00038356,3]
[359316494,1745915452341,-513.32856583,0.00038356,3]
[359316495,1745915452352,-2561.44,0.00038356,3]
[359316496,1745915452364,-584.77,0.00038356,3]
[359316497,1745915452373,-400.0,0.00038356,3]
[359316498,1745915452382,-400.0,0.00038356,3]
[359316499,1745915452392,-400.0,0.00038356,3]
[359316500,1745915452401,-537.53,0.00038356,3]
[359316501,1745915452410,-1396.05,0.00038356,3]
[359316502,1745915452420,-400.0,0.00038356,3]
[359316503,1745915452429,-8438.27,0.00038356,3]
[359316504,1745915452439,-2934.42,0.00038356,3]
[359316505,1745915452449,-400.0,0.00038356,3]
[359316506,1745915452461,-400.0,0.00038356,3]
[359316507,1745915452470,-1211.43,0.00038356,3]
[359316508,1745915452479,-3968.35,0.00038356,3]
[359316509,1745915452489,-500.66710357,0.00038356,3]
[359316510,1745915452499,-400.0,0.00038356,3]
[359316511,1745915452508,-400.0,0.00038356,3]
[359316512,1745915452517,-400.0,0.00038356,3]
[359316513,1745915452527,-400.0,0.00038356,3]
[359316514,1745915452536,-400.0,0.00038356,3]
[359316515,1745915452546,-433.93,0.00038356,3]
[359316516,1745915452556,-400.0,0.00038356,3]
[359316517,1745915452565,-501.34086934,0.00038356,3]
[359316518,1745915452575,-400.0,0.00038356,3]
[359316519,1745915452584,-2511.12,0.00038356,3]
[359316520,1745915452593,-400.0,0.00038356,3]
[359316521,1745915452602,-3045.31,0.00038356,3]
[359316522,1745915452612,-400.0,0.00038356,3]
[359316523,1745915452621,-151.0,0.00038356,14]
[359316524,1745915452630,-400.0,0.00038356,3]
[359316525,1745915452639,-151.0,0.00038356,14]
[359316526,1745915452649,-400.0,0.00038356,3]
[359316527,1745915452658,-151.0,0.00038356,14]
[359316528,1745915452667,-523.58553791,0.00038356,3]
[359316529,1745915452676,-400.0,0.00038356,3]
[359316530,1745915452686,-151.0,0.00038356,14]
[359316531,1745915452695,-155.146155,0.00038356,14]
[359316532,1745915452704,-502.33581438,0.00038356,3]
[359316533,1745915452713,-400.0,0.00038356,3]
[359316534,1745915452722,-400.0,0.00038356,3]
[359316535,1745915452731,-3049.84,0.00038356,3]
[359316536,1745915452741,-400.0,0.00038356,3]
[359316537,1745915452750,-400.0,0.00038356,3]
[359316538,1745915452759,-400.0,0.00038356,3]
[359316539,1745915452768,-411.82,0.00038356,3]
[359316540,1745915452777,-400.0,0.00038356,3]
[359316541,1745915452786,-572.09,0.00038356,3]
[359316542,1745915452795,-400.0,0.00038356,3]
[359316544,1745915452805,-400.0,0.00038356,3]
[359316545,1745915452814,-1701.55,0.00038356,3]
[359316546,1745915452823,-4967.2489013,0.00038356,3]
[359316547,1745915453382,-706.25464655,0.000379,2]
[359316548,1745915453391,-214.3910987,0.00038356,3]
[359316549,1745915453399,-501.94022535,0.00038356,3]
[359316550,1745915453408,-3813.39,0.00038356,3]
[359316551,1745915453417,-400.0,0.00038356,3]
[359316552,1745915453426,-2272.73,0.00038356,3]
[359316553,1745915453434,-217.81260035,0.00038356,3]
[359316554,1745915453455,-1087.46739965,0.00038356,3]
[359316555,1745915453462,-151.51374466,0.00038356,3]
[359316556,1745915454181,-706.25464655,0.00037989,2]
[359316557,1745915454191,-248.48625534,0.00038356,3]
[359316558,1745915454200,-400.0,0.00038356,2]
[359316559,1745915454210,-903.9934138,0.00038356,3]
[359316560,1745915454221,-199.0865862,0.00038356,3]
[359316561,1745915454408,-342.5634138,0.00038356,3]
[359316562,1745915454420,-486.8965862,0.00038356,3]
[359316563,1745915454429,-50.02586142,0.00038356,3]
[359316564,1745915454460,-349.97413858,0.00038356,3]
[359316565,1745915454470,-400.0,0.00038356,3]
[359316566,1745915454479,-400.0,0.00038356,3]
[359316567,1745915454488,-822.77,0.00038356,3]
[359316568,1745915454498,-608.05,0.00038356,3]
[359316569,1745915454507,-400.0,0.00038356,3]
[359316570,1745915454516,-400.0,0.00038356,3]
[359316571,1745915454525,-225.66182518,0.00038356,3]
[359316572,1745915454535,-500.0,0.00038356,3]
[359316573,1745915454546,-400.0,0.00038356,3]
[359316574,1745915454556,-400.0,0.00038356,3]
[359316575,1745915454566,-400.0,0.00038356,3]
[359316576,1745915454575,-195.95766084,0.00038356,3]
[359316577,1745915454587,-204.04233916,0.00038356,3]
[359316578,1745915454596,-1127.96,0.00038356,3]
[359316579,1745915454606,-3060.44,0.00038356,3]
[359316580,1745915454617,-1000.0,0.00038356,28]
[359316581,1745915454626,-400.0,0.00038356,3]
[359316582,1745915454635,-1042.703285,0.00038356,28]
[359316583,1745915454645,-400.0,0.00038356,3]
[359316584,1745915454653,-1039.59,0.00038356,3]
[359316585,1745915454663,-1861.66,0.00038356,3]
[359316586,1745915454672,-400.0,0.00038356,3]
[359316587,1745915454681,-451.47,0.00038356,3]
[359316588,1745915454690,-3591.04,0.00038356,2]
[359316589,1745915454700,-400.0,0.00038356,3]
[359316590,1745915454709,-500.0,0.00038356,14]
[359316591,1745915454718,-400.0,0.00038356,3]
[359316592,1745915454727,-400.0,0.00038356,3]
[359316593,1745915454736,-400.0,0.00038356,3]
[359316594,1745915454746,-4638.61,0.00038356,3]
[359316595,1745915454755,-4638.61,0.00038356,3]
[359316596,1745915454764,-4638.61,0.00038356,3]
[359316597,1745915454773,-679.72,0.00038356,3]
[359316598,1745915454782,-4638.61,0.00038356,3]
[359316599,1745915454791,-4638.61,0.00038356,3]
[359316600,1745915454801,-400.0,0.00038356,3]
[359316601,1745915454810,-4638.61,0.00038356,3]
[359316602,1745915454819,-4638.61,0.00038356,3]
[359316603,1745915454828,-4638.61,0.00038356,3]
[359316604,1745915454837,-4638.61,0.00038356,3]
[359316605,1745915454846,-4638.61,0.00038356,3]
[359316606,1745915454856,-4638.61,0.00038356,3]
[359316607,1745915454866,-400.0,0.00038356,3]
[359316608,1745915454875,-4638.61,0.00038356,3]
[359316609,1745915454885,-4638.61,0.00038356,3]
[359316610,1745915454894,-4638.61,0.00038356,3]
[359316611,1745915454904,-4638.61,0.00038356,3]
[359316612,1745915454913,-4638.61,0.00038356,3]
[359316613,1745915454923,-40.10836093,0.00038356,3]
[359316614,1745915454935,-4598.50163907,0.00038356,3]
[359316615,1745915454945,-4638.61,0.00038356,3]
[359316616,1745915454954,-4638.61,0.00038356,3]
[359316617,1745915454964,-986.16005423,0.00038356,3]
[359316618,1745915454976,-3652.44994577,0.00038356,3]
[359316619,1745915454986,-4638.61,0.00038356,3]
[359316620,1745915454995,-158.152051,0.00038356,14]
[359316621,1745915455005,-2399.45806415,0.00038356,3]
[359316622,1745915455389,-706.25464655,0.00038078,2]
[359316623,1745915455399,-706.25464655,0.00038167,2]
[359316624,1745915455409,-2239.15193585,0.00038356,3]
[359316625,1745915455418,-4638.61,0.00038356,3]
[359316626,1745915455427,-1092.65788613,0.00038356,3]
[359316627,1745915455438,-3546.11211387,0.00038356,3]
[359316628,1745915455448,-196.48476556,0.00038356,2]
[359316629,1745915455462,-502.59814459,0.00038373,5]
[359316630,1745915455471,-500.0,0.00038373,5]
[359316631,1745915455481,-158.76501769,0.00038373,5]
[359316632,1745915455491,-500.0,0.00038373,5]
[359316633,1745915455501,-355.43740241,0.00038373,5]
[359316634,1745915455511,-567.85344502,0.00038373,5]
[359316635,1745915455520,-502.16106278,0.00038373,5]
[359316636,1745915455531,-396.72896926,0.00038373,5]
[359316637,1745915455541,-500.0,0.00038373,5]
[359316638,1745915455550,-287.01909103,0.00038373,5]
[359316639,1745915455559,-500.0,0.00038373,5]
[359316640,1745915455568,-448.40821145,0.00038373,5]
[359316674,1745916631885,-1000.0,0.00025287,2]
[359316675,1745916631898,-250.0,0.00025387,2]
[359316676,1745916631908,-626.0,0.000268,2]
[359316677,1745916631918,-777.83,0.0003,2]
[359316678,1745916631928,-400.0,0.00032489,3]
[359316679,1745916631939,-9202.6531442,0.0003249,2]
[359316680,1745916631948,-237.42791063,0.000329,10]
[359316681,1745916631959,-288.88020666,0.00033304,2]
[359316682,1745916631968,-626.0,0.00034,2]
[359316683,1745916631977,-200.0,0.00034926,3]
[359316685,1745916631988,-176.56366166,0.00035516,2]
[359316686,1745916631998,-556.00456877,0.00035516,2]
[359316687,1745916632008,-898.46630175,0.00035606,3]
[359316688,1745916632019,-689.09,0.00035606,3]
[359316689,1745916632029,-344.55,0.00035606,3]
[359316690,1745916632039,-172.27,0.00035606,3]
[359316691,1745916632048,-516.85,0.00035606,3]
[359316692,1745916632059,-164.66421436,0.00035615,42]
[359316693,1745916632069,-286.94398548,0.00035615,7]
[359316694,1745916632079,-162.86152327,0.00035615,7]
[359316695,1745916632088,-405.66270239,0.00035615,7]
[359316696,1745916632098,-500.0,0.00035615,7]
[359316697,1745916632107,-361.24162984,0.00035615,7]
[359316698,1745916632117,-400.0,0.00035616,3]
[359316699,1745916632127,-400.0,0.00035616,3]
[359316700,1745916632136,-400.0,0.00035616,3]
[359316701,1745916632145,-400.0,0.00035616,3]
[359316702,1745916632155,-582.02,0.00035616,3]
[359316703,1745916632164,-1133.02,0.00035616,3]
[359316704,1745916632174,-224.38130224,0.00035616,3]
[359316705,1745916632183,-213.37437622,0.00035616,3]
[359316706,1745916632193,-400.0,0.00035616,3]
[359316707,1745916632202,-400.0,0.00035616,3]
[359316708,1745916632212,-400.0,0.00035616,3]
[359316709,1745916632223,-400.0,0.00035616,3]
[359316710,1745916632232,-400.0,0.00035616,3]
[359316711,1745916632241,-400.0,0.00035616,3]
[359316712,1745916632251,-400.0,0.00035616,3]
[359316713,1745916632260,-400.0,0.00035616,3]
[359316714,1745916632270,-400.0,0.00035616,3]
[359316715,1745916632279,-482.8,0.00035616,3]
[359316716,1745916632288,-201.73419925,0.00035616,3]
[359316717,1745916632297,-400.0,0.00035616,3]
[359316718,1745916632307,-456.01,0.00035616,3]
[359316719,1745916632316,-400.0,0.00035616,3]
[359316720,1745916632326,-400.0,0.00035616,3]
[359316721,1745916632335,-400.0,0.00035616,3]
[359316722,1745916632344,-400.0,0.00035616,3]
[359316723,1745916632353,-611.28,0.00035616,3]
[359316724,1745916632362,-400.0,0.00035616,3]
[359316725,1745916632372,-207.80649314,0.00035616,3]
[359316726,1745916632381,-400.0,0.00035616,3]
[359316727,1745916632390,-400.0,0.00035616,3]
[359316728,1745916632399,-400.0,0.00035616,3]
[359316729,1745916632409,-400.0,0.00035616,3]
[359316730,1745916632418,-400.0,0.00035616,3]
[359316731,1745916632429,-307.29784191,0.00035616,3]
[359316732,1745916632438,-400.0,0.00035616,3]
[359316733,1745916632447,-400.0,0.00035616,3]
[359316734,1745916632456,-587.97,0.00035616,3]
[359316735,1745916632465,-400.0,0.00035616,3]
[359316736,1745916632474,-596.25,0.00035616,3]
[359316737,1745916632483,-400.0,0.00035616,3]
[359316738,1745916632493,-400.0,0.00035616,3]
[359316740,1745916632502,-420.51,0.00035616,3]
[359316742,1745916632511,-400.0,0.00035616,3]
[359316744,1745916632520,-400.0,0.00035616,3]
[359316746,1745916632530,-400.0,0.00035616,3]
[359316748,1745916632539,-400.0,0.00035616,3]
[359316750,1745916632548,-1023.37,0.00035616,3]
[359316751,1745916632558,-400.0,0.00035616,3]
[359316752,1745916632567,-282.73107454,0.00035616,3]
[359316753,1745916632577,-487.66,0.00035616,3]
[359316755,1745916632586,-400.0,0.00035616,3]
[359316757,1745916632595,-400.402855,0.00035616,3]
[359316759,1745916632604,-848.87,0.00035616,3]
[359316761,1745916632613,-400.0,0.00035616,3]
[359316763,1745916632622,-400.0,0.00035616,3]
[359316764,1745916632632,-400.0,0.00035616,3]
[359316765,1745916632641,-400.0,0.00035616,3]
[359316766,1745916632650,-899.62,0.00035616,3]
[359316767,1745916632659,-484.13240252,0.00035616,3]
[359316768,1745916632668,-400.0,0.00035616,3]
[359316769,1745916632677,-400.0,0.00035616,3]
[359316770,1745916632687,-1000.0,0.00035616,5]
[359316771,1745916632697,-400.0,0.00035616,3]
[359316772,1745916632706,-400.0,0.00035616,3]
[359316773,1745916632715,-400.0,0.00035616,3]
[359316774,1745916632725,-400.0,0.00035616,3]
[359316775,1745916632734,-400.0,0.00035616,3]
[359316776,1745916632743,-400.0,0.00035616,3]
[359316777,1745916632753,-969.99,0.00035616,3]
[359316778,1745916632762,-400.0,0.00035616,3]
[359316779,1745916632771,-400.0,0.00035616,3]
[359316780,1745916632781,-400.0,0.00035616,3]
[359316781,1745916632790,-400.0,0.00035616,3]
[359316782,1745916632799,-400.0,0.00035616,3]
[359316783,1745916632808,-400.0,0.00035616,3]
[359316784,1745916632817,-400.0,0.00035616,3]
[359316785,1745916632827,-400.0,0.00035616,3]
[359316786,1745916632836,-531.90974887,0.00035616,3]
[359316787,1745916632846,-400.0,0.00035616,3]
[359316788,1745916632859,-549.6,0.00035616,3]
[359316789,1745916632868,-912.32,0.00035616,3]
[359316790,1745916632877,-400.0,0.00035616,3]
[359316791,1745916632887,-400.0,0.00035616,3]
[359316792,1745916632896,-400.0,0.00035616,3]
[359316793,1745916632905,-400.0,0.00035616,3]
[359316794,1745916632914,-400.0,0.00035616,3]
[359316795,1745916632924,-400.0,0.00035616,3]
[359316796,1745916632933,-495.0,0.00035616,3]
[359316797,1745916632944,-400.0,0.00035616,3]
[359316798,1745916632953,-1530.33,0.00035616,3]
[359316799,1745916632963,-400.0,0.00035616,3]
[359316800,1745916632973,-400.0,0.00035616,3]
[359316801,1745916632985,-500.0,0.00035616,3]
[359316802,1745916632995,-400.0,0.00035616,3]
[359316803,1745916633005,-400.0,0.00035616,3]
[359316804,1745916633014,-400.0,0.00035616,3]
[359316805,1745916633024,-2178.03,0.00035616,3]
[359316806,1745916633034,-400.0,0.00035616,3]
[359316807,1745916633043,-670.11930381,0.00035616,3]
[359316825,1745916637896,-232.62069619,0.00035616,3]
[359316826,1745916637906,-400.0,0.00035616,3]
[359316827,1745916637916,-400.0,0.00035616,3]
[359316828,1745916637927,-400.0,0.00035616,3]
[359316829,1745916637940,-400.0,0.00035616,3]
[359316830,1745916637950,-581.32,0.00035616,3]
[359316832,1745916637959,-819.6,0.00035616,3]
[359316834,1745916637968,-400.0,0.00035616,3]
[359316836,1745916637978,-400.0,0.00035616,3]
[359316837,1745916637988,-287.78001304,0.00035616,3]
[359316838,1745916637998,-400.0,0.00035616,3]
[359316840,1745916638008,-400.0,0.00035616,3]
[359316842,1745916638017,-400.0,0.00035616,3]
[359316844,1745916638027,-400.0,0.00035616,3]
[359316846,1745916638037,-400.0,0.00035616,3]
[359316848,1745916638047,-400.0,0.00035616,3]
[359316850,1745916638056,-400.0,0.00035616,3]
[359316852,1745916638065,-236.11282394,0.00035616,3]
[359316854,1745916638074,-400.0,0.00035616,3]
[359316856,1745916638083,-400.0,0.00035616,3]
[359316858,1745916638092,-400.0,0.00035616,3]
[359316860,1745916638101,-400.0,0.00035616,3]
[359316862,1745916638111,-1392.9,0.00035616,3]
[359316864,1745916638120,-432.66,0.00035616,3]
[359316866,1745916638130,-400.0,0.00035616,3]
[359316868,1745916638138,-400.0,0.00035616,3]
[359316870,1745916638147,-353.39380191,0.00035616,3]
[359316871,1745916638157,-400.0,0.00035616,3]
[359316872,1745916638166,-400.0,0.00035616,3]
[359316873,1745916638175,-400.0,0.00035616,3]
[359316874,1745916638185,-8397.28,0.00035616,3]
[359316875,1745916638195,-400.0,0.00035616,3]
[359316876,1745916638205,-400.0,0.00035616,3]
[359316877,1745916638215,-2627.3,0.00035616,3]
[359316878,1745916638225,-400.0,0.00035616,3]
[359316879,1745916638234,-400.0,0.00035616,3]
[359316880,1745916638244,-364.3398641,0.00035616,3]
[359316881,1745916638255,-643.5,0.00035616,3]
[359316882,1745916638264,-400.0,0.00035616,3]
[359316883,1745916638273,-400.0,0.00035616,3]
[359316884,1745916638283,-400.0,0.00035616,3]
[359316885,1745916638292,-3107.85,0.00035616,3]
[359316886,1745916638302,-400.0,0.00035616,3]
[359316887,1745916638311,-400.0,0.00035616,3]
[359316888,1745916638320,-1311.05,0.00035616,3]
[359316889,1745916638330,-1346.95,0.00035616,3]
[359316890,1745916638340,-5334.28,0.00035616,3]
[359316891,1745916638349,-400.0,0.00035616,3]
[359316892,1745916638359,-400.0,0.00035616,3]
[359316893,1745916638368,-3285.04,0.00035616,3]
[359316894,1745916638378,-406.22,0.00035616,3]
[359316895,1745916638387,-927.72,0.00035616,3]
[359316896,1745916638396,-1981.88,0.00035616,3]
[359316897,1745916638406,-927.72,0.00035616,3]
[359316898,1745916638415,-927.72,0.00035616,3]
[359316899,1745916638423,-927.72,0.00035616,3]
[359316900,1745916638432,-927.72,0.00035616,3]
[359316901,1745916638442,-927.72,0.00035616,3]
[359316902,1745916638451,-400.0,0.00035616,3]
[359316903,1745916638459,-471.27,0.00035616,3]
[359316904,1745916638468,-400.0,0.00035616,3]
[359316905,1745916638478,-400.0,0.00035616,3]
[359316906,1745916638487,-1074.55,0.00035616,3]
[359316907,1745916638496,-400.0,0.00035616,3]
[359316908,1745916638505,-400.0,0.00035616,3]
[359316909,1745916638514,-1717.39,0.00035616,3]
[359316910,1745916638524,-400.0,0.00035616,3]
[359316911,1745916638533,-855.76,0.00035616,3]
[359316912,1745916638542,-202.77081913,0.00035616,3]
[359316913,1745916638551,-241.56652406,0.00035616,3]
[359316914,1745916638560,-400.0,0.00035616,3]
[359316915,1745916638571,-2600.38,0.00035616,3]
[359316916,1745916638586,-400.0,0.00035616,3]
[359316917,1745916638596,-400.0,0.00035616,3]
[359316918,1745916638605,-400.0,0.00035616,3]
[359316919,1745916638614,-400.0,0.00035616,3]
[359316920,1745916638623,-2762.11,0.00035616,3]
[359316921,1745916638633,-400.0,0.00035616,3]
[359316922,1745916638642,-409.57199923,0.00035616,3]
[359316923,1745916638652,-400.0,0.00035616,3]
[359316924,1745916638661,-421.03,0.00035616,3]
[359316925,1745916638671,-500.0,0.00035616,3]
[359316926,1745916638680,-454.79,0.00035616,3]
[359316927,1745916638689,-400.0,0.00035616,3]
[359316928,1745916638698,-400.0,0.00035616,3]
[359316929,1745916638708,-400.0,0.00035616,3]
[359316930,1745916638717,-400.0,0.00035616,3]
[359316931,1745916638727,-400.0,0.00035616,3]
[359316932,1745916638736,-1101.38,0.00035616,3]
[359316933,1745916638746,-9062.83,0.00035616,3]
[359316934,1745916638756,-3046.79,0.00035616,3]
[359316935,1745916638767,-400.0,0.00035616,3]
[359316936,1745916638776,-400.0,0.00035616,3]
[359316937,1745916638785,-5805.23,0.00035616,3]
[359316938,1745916638794,-400.0,0.00035616,3]
[359316939,1745916638804,-400.0,0.00035616,3]
[359316940,1745916638813,-400.0,0.00035616,3]
[359316941,1745916638824,-400.0,0.00035616,3]
[359316942,1745916638833,-1000.0,0.00035616,3]
[359316943,1745916638843,-400.0,0.00035616,3]
[359316944,1745916638852,-1122.13,0.00035616,3]
[359316945,1745916638864,-269.6545365,0.00035616,3]
[359316946,1745916638873,-426.38,0.00035616,3]
[359316947,1745916638883,-518.3698526,0.00035616,3]
[359316948,1745916638892,-400.0,0.00035616,3]
[359316949,1745916638902,-400.0,0.00035616,3]
[359316950,1745916638911,-400.0,0.00035616,3]
[359316951,1745916638920,-400.0,0.00035616,3]
[359316952,1745916638930,-400.0,0.00035616,3]
[359316953,1745916638940,-400.0,0.00035616,3]
[359316954,1745916638949,-400.0,0.00035616,3]
[359316955,1745916638959,-400.0,0.00035616,3]
[359316956,1745916638968,-400.0,0.00035616,3]
[359316957,1745916638978,-400.0,0.00035616,3]